[Event "Late-Titled-Tuesday-Blitz-May-14-2024"]
[Site "Chess.com"]
[Date "2024.05.14"]
[Round "3"]
[White "EsmeraldasAnderson03"]
[Black "AsaHoffmann"]
[Result "1-0"]
[WhiteElo "2515"]
[BlackElo "2315"]
[TimeControl "180+1"]
[EndTime "14:27:59 PDT"]
[Termination "EsmeraldasAnderson03 won on time"]

1. d4 {[%clk 0:02:55.6]} 1... Nf6 {[%clk 0:00:54.2]} 2. c4 {[%clk 0:02:43]} 2...
c5 {[%clk 0:00:53.7]} 3. d5 {[%clk 0:02:43.2]} 3... e5 {[%clk 0:00:52.9]} 4. Nc3
{[%clk 0:02:42.4]} 4... d6 {[%clk 0:00:50.6]} 5. e4 {[%clk 0:02:43.3]} 5... Be7
{[%clk 0:00:37.1]} 6. f3 {[%clk 0:02:39.2]} 6... Nbd7 {[%clk 0:00:36.9]} 7. Be3
{[%clk 0:02:36.1]} 7... Nf8 {[%clk 0:00:36.9]} 8. Bd3 {[%clk 0:02:32.6]} 8...
Ng6 {[%clk 0:00:36.9]} 9. Nge2 {[%clk 0:02:32.8]} 9... O-O {[%clk 0:00:36.9]}
10. g4 {[%clk 0:02:31.4]} 10... Nxg4 {[%clk 0:00:35.3]} 11. fxg4 {[%clk
0:02:31.1]} 11... Bh4+ {[%clk 0:00:34.7]} 12. Kd2 {[%clk 0:02:31.2]} 12... Bxg4
{[%clk 0:00:34.2]} 13. Rg1 {[%clk 0:02:22.1]} 13... Bf3 {[%clk 0:00:31.2]} 14.
Qf1 {[%clk 0:02:21.2]} 14... Bh5 {[%clk 0:00:28.6]} 15. Qf5 {[%clk 0:02:19.7]}
15... Bxe2 {[%clk 0:00:25.8]} 16. Nxe2 {[%clk 0:02:15.2]} 16... a6 {[%clk
0:00:25.4]} 17. Nc3 {[%clk 0:02:13.1]} 17... b5 {[%clk 0:00:25]} 18. cxb5 {[%clk
0:02:14]} 18... axb5 {[%clk 0:00:25]} 19. Bxb5 {[%clk 0:02:14]} 19... Qa5 {[%clk
0:00:23.8]} 20. a4 {[%clk 0:02:11.7]} 20... Rfb8 {[%clk 0:00:22.9]} 21. Kc2
{[%clk 0:02:09.5]} 21... Qb4 {[%clk 0:00:22.6]} 22. Rgf1 {[%clk 0:01:56.8]}
22... f6 {[%clk 0:00:21.4]} 23. Qe6+ {[%clk 0:01:55.7]} 23... Kh8 {[%clk
0:00:21.2]} 24. Qxd6 {[%clk 0:01:56.6]} 24... Rd8 {[%clk 0:00:17.8]} 25. Qxc5
{[%clk 0:01:56.2]} 25... Qa5 {[%clk 0:00:16.4]} 26. d6 {[%clk 0:01:51.8]} 26...
Rac8 {[%clk 0:00:15.3]} 27. Qb6 {[%clk 0:01:51]} 27... Qa8 {[%clk 0:00:14.1]}
28. Kb3 {[%clk 0:01:47.5]} 28... Rb8 {[%clk 0:00:11]} 29. Qc5 {[%clk 0:01:47.7]}
29... Rdc8 {[%clk 0:00:10.6]} 30. Qd5 {[%clk 0:01:47.8]} 30... Qa5 {[%clk
0:00:07.4]} 31. d7 {[%clk 0:01:48]} 31... Rd8 {[%clk 0:00:06.8]} 32. Rfd1 {[%clk
0:01:46.8]} 32... Nf4 {[%clk 0:00:06.1]} 33. Bxf4 {[%clk 0:01:46.6]} 33... exf4
{[%clk 0:00:06.1]} 34. Rd3 {[%clk 0:01:44.9]} 34... Bf2 {[%clk 0:00:05.1]} 35.
Rf1 {[%clk 0:01:43.7]} 35... Be3 {[%clk 0:00:04.8]} 36. h4 {[%clk 0:01:42.8]}
36... Qc7 {[%clk 0:00:02.8]} 37. h5 {[%clk 0:01:42.7]} 37... Rxd7 {[%clk
0:00:02.6]} 38. Qxd7 {[%clk 0:01:42.9]} 38... Qc5 {[%clk 0:00:01.2]} 39. Qd8+
{[%clk 0:01:42.4]} 39... Rxd8 {[%clk 0:00:00.7]} 40. Rxd8+ {[%clk 0:01:41.9]}
1-0

[Event "Late-Titled-Tuesday-Blitz-May-14-2024"]
[Site "Chess.com"]
[Date "2024.05.14"]
[Round "3"]
[White "BjarkeSahl"]
[Black "Christian-Toth"]
[Result "1-0"]
[WhiteElo "2108"]
[BlackElo "2375"]
[TimeControl "180+1"]
[EndTime "14:28:00 PDT"]
[Termination "BjarkeSahl won on time"]

1. d4 {[%clk 0:02:56]} 1... d5 {[%clk 0:02:51.3]} 2. c4 {[%clk 0:02:54.1]} 2...
e6 {[%clk 0:02:51.4]} 3. Nc3 {[%clk 0:02:53.7]} 3... c5 {[%clk 0:02:50.8]} 4. e3
{[%clk 0:02:52.8]} 4... Nf6 {[%clk 0:02:49.8]} 5. Nf3 {[%clk 0:02:53.4]} 5...
Nc6 {[%clk 0:02:49.1]} 6. a3 {[%clk 0:02:54]} 6... Ne4 {[%clk 0:02:47.9]} 7.
cxd5 {[%clk 0:02:48.8]} 7... Nxc3 {[%clk 0:02:43]} 8. bxc3 {[%clk 0:02:47.5]}
8... exd5 {[%clk 0:02:43.9]} 9. Be2 {[%clk 0:02:41.7]} 9... Be7 {[%clk
0:02:43.5]} 10. O-O {[%clk 0:02:41.5]} 10... O-O {[%clk 0:02:43.4]} 11. Nd2
{[%clk 0:02:22.1]} 11... Bf5 {[%clk 0:02:06.9]} 12. Bf3 {[%clk 0:02:16.5]} 12...
Re8 {[%clk 0:01:49.8]} 13. Re1 {[%clk 0:02:13.7]} 13... Bf6 {[%clk 0:01:45.2]}
14. a4 {[%clk 0:02:04.5]} 14... Rc8 {[%clk 0:01:16.6]} 15. Ba3 {[%clk
0:02:03.9]} 15... b6 {[%clk 0:01:06.7]} 16. Nb3 {[%clk 0:01:39.5]} 16... cxd4
{[%clk 0:00:31.6]} 17. Nxd4 {[%clk 0:01:38.3]} 17... Nxd4 {[%clk 0:00:25.7]} 18.
cxd4 {[%clk 0:01:38.2]} 18... Be7 {[%clk 0:00:23.2]} 19. Qb3 {[%clk 0:01:27.1]}
19... Bxa3 {[%clk 0:00:16.3]} 20. Qxa3 {[%clk 0:01:18]} 20... Be6 {[%clk
0:00:15.9]} 21. a5 {[%clk 0:01:17.8]} 21... bxa5 {[%clk 0:00:14.5]} 22. Qxa5
{[%clk 0:01:16.2]} 22... Qxa5 {[%clk 0:00:11.2]} 23. Rxa5 {[%clk 0:01:16.2]}
23... Rc7 {[%clk 0:00:03.5]} 24. h4 {[%clk 0:01:09.2]} 24... Rd8 {[%clk
0:00:01.3]} 25. Rea1 {[%clk 0:01:09.4]} 1-0

[Event "Late-Titled-Tuesday-Blitz-May-14-2024"]
[Site "Chess.com"]
[Date "2024.05.14"]
[Round "3"]
[White "Grischuk"]
[Black "remyrushbrooke"]
[Result "1-0"]
[WhiteElo "3134"]
[BlackElo "2343"]
[TimeControl "180+1"]
[EndTime "14:28:12 PDT"]
[Termination "Grischuk won on time"]

1. d4 {[%clk 0:03:00.9]} 1... f5 {[%clk 0:02:59.1]} 2. Nc3 {[%clk 0:02:57.4]}
2... Nf6 {[%clk 0:02:53.8]} 3. Bg5 {[%clk 0:02:57.5]} 3... d5 {[%clk 0:02:54.3]}
4. e3 {[%clk 0:02:57.5]} 4... Nc6 {[%clk 0:02:51.2]} 5. Bb5 {[%clk 0:02:46.6]}
5... Be6 {[%clk 0:02:46.7]} 6. Nf3 {[%clk 0:02:44.7]} 6... h6 {[%clk 0:02:43.3]}
7. Bf4 {[%clk 0:02:30.9]} 7... a6 {[%clk 0:02:12.7]} 8. Bxc6+ {[%clk 0:02:29.9]}
8... bxc6 {[%clk 0:02:13.6]} 9. Ne5 {[%clk 0:02:27.6]} 9... Bd7 {[%clk
0:02:04.2]} 10. Ng6 {[%clk 0:02:23.7]} 10... Rg8 {[%clk 0:02:00.6]} 11. O-O
{[%clk 0:02:21]} 11... Kf7 {[%clk 0:01:56]} 12. Nxf8 {[%clk 0:02:20.2]} 12...
Rxf8 {[%clk 0:01:55.7]} 13. Na4 {[%clk 0:02:19.8]} 13... Kg8 {[%clk 0:01:53.5]}
14. b3 {[%clk 0:02:13.2]} 14... g5 {[%clk 0:01:44.1]} 15. Be5 {[%clk 0:02:13.2]}
15... Be8 {[%clk 0:01:39.3]} 16. Nc5 {[%clk 0:02:11.6]} 16... Qc8 {[%clk
0:01:35.4]} 17. Bxf6 {[%clk 0:01:41.6]} 17... Rxf6 {[%clk 0:01:36.3]} 18. f3
{[%clk 0:01:35.7]} 18... Bh5 {[%clk 0:01:25]} 19. Qd2 {[%clk 0:01:32.1]} 19...
Qf8 {[%clk 0:00:59]} 20. Nd7 {[%clk 0:01:31.1]} 20... Qf7 {[%clk 0:00:57.4]} 21.
Nxf6+ {[%clk 0:01:31]} 21... Qxf6 {[%clk 0:00:57.9]} 22. c4 {[%clk 0:01:23.6]}
22... Rd8 {[%clk 0:00:55.5]} 23. Rac1 {[%clk 0:01:19.8]} 23... f4 {[%clk
0:00:49.3]} 24. Rfe1 {[%clk 0:01:14.7]} 24... Kh8 {[%clk 0:00:34.9]} 25. Qc3
{[%clk 0:01:07.9]} 25... Rg8 {[%clk 0:00:07]} 26. h3 {[%clk 0:01:01.2]} 26...
Rd8 {[%clk 0:00:01.7]} 27. cxd5 {[%clk 0:01:00.6]} 1-0

[Event "Late-Titled-Tuesday-Blitz-May-14-2024"]
[Site "Chess.com"]
[Date "2024.05.14"]
[Round "3"]
[White "Alexander_Donchenko"]
[Black "kinga2008"]
[Result "1-0"]
[WhiteElo "2846"]
[BlackElo "2531"]
[TimeControl "180+1"]
[EndTime "14:28:19 PDT"]
[Termination "Alexander_Donchenko won by resignation"]

1. e4 {[%clk 0:02:59.8]} 1... c5 {[%clk 0:03:00.3]} 2. Nf3 {[%clk 0:03:00.2]}
2... Nc6 {[%clk 0:02:58.2]} 3. d4 {[%clk 0:02:59.8]} 3... cxd4 {[%clk
0:02:58.5]} 4. Nxd4 {[%clk 0:03:00.7]} 4... e5 {[%clk 0:02:58.5]} 5. Nb5 {[%clk
0:03:00.6]} 5... a6 {[%clk 0:02:54.7]} 6. Nd6+ {[%clk 0:03:00.5]} 6... Bxd6
{[%clk 0:02:55.4]} 7. Qxd6 {[%clk 0:03:00.8]} 7... Qf6 {[%clk 0:02:56.3]} 8.
Qxf6 {[%clk 0:02:59.3]} 8... Nxf6 {[%clk 0:02:56.3]} 9. f3 {[%clk 0:02:59.4]}
9... b5 {[%clk 0:02:56.8]} 10. a4 {[%clk 0:02:58.8]} 10... Nd4 {[%clk
0:02:53.7]} 11. Bd3 {[%clk 0:02:58.3]} 11... b4 {[%clk 0:02:54.3]} 12. Be3
{[%clk 0:02:57.1]} 12... Ne6 {[%clk 0:02:48.2]} 13. Nd2 {[%clk 0:02:56.3]} 13...
d6 {[%clk 0:02:41.1]} 14. Nc4 {[%clk 0:02:55.2]} 14... Ke7 {[%clk 0:02:41.3]}
15. Nb6 {[%clk 0:02:55.5]} 15... Rb8 {[%clk 0:02:41.1]} 16. O-O-O {[%clk
0:02:53]} 16... Bb7 {[%clk 0:02:38.9]} 17. a5 {[%clk 0:02:52.3]} 17... Rhd8
{[%clk 0:02:37.2]} 18. Bc4 {[%clk 0:02:46.5]} 18... Nd7 {[%clk 0:02:31.2]} 19.
Nd5+ {[%clk 0:02:44.1]} 19... Bxd5 {[%clk 0:02:29.2]} 20. Rxd5 {[%clk
0:02:42.9]} 20... Ndc5 {[%clk 0:02:26.1]} 21. Rhd1 {[%clk 0:02:41.3]} 21... Rbc8
{[%clk 0:02:14.1]} 22. Be2 {[%clk 0:02:36.5]} 22... Rc6 {[%clk 0:01:42.7]} 23.
Kb1 {[%clk 0:02:35.7]} 23... Rdc8 {[%clk 0:01:37.6]} 24. h4 {[%clk 0:02:33.2]}
24... Nb7 {[%clk 0:01:24.6]} 25. R1d2 {[%clk 0:02:27.9]} 25... Nc7 {[%clk
0:01:24.5]} 26. Bb6 {[%clk 0:02:09.2]} 26... Nxd5 {[%clk 0:01:00.2]} 27. exd5
{[%clk 0:02:10.1]} 27... Rc5 {[%clk 0:01:00.6]} 28. Bxa6 {[%clk 0:02:09.2]}
28... Nxa5 {[%clk 0:00:59.5]} 29. Bxa5 {[%clk 0:02:01.5]} 29... Ra8 {[%clk
0:00:54]} 30. Bxb4 {[%clk 0:02:01.7]} 30... Rxa6 {[%clk 0:00:41]} 31. Bxc5
{[%clk 0:02:02.3]} 31... dxc5 {[%clk 0:00:41.9]} 32. c4 {[%clk 0:02:02.6]} 32...
Rh6 {[%clk 0:00:35.8]} 33. g3 {[%clk 0:02:02.6]} 33... Rg6 {[%clk 0:00:35.9]}
34. g4 {[%clk 0:02:02.6]} 34... Rf6 {[%clk 0:00:36.4]} 35. Rd3 {[%clk
0:02:02.4]} 35... Rf4 {[%clk 0:00:37]} 36. b3 {[%clk 0:02:01.7]} 36... Kd6
{[%clk 0:00:34.5]} 37. Re3 {[%clk 0:02:01.8]} 37... f5 {[%clk 0:00:30.3]} 38.
gxf5 {[%clk 0:02:01.9]} 38... Rxh4 {[%clk 0:00:30.3]} 39. Kc2 {[%clk 0:02:00]}
39... Rf4 {[%clk 0:00:29.8]} 40. Kc3 {[%clk 0:01:58]} 40... Rxf5 {[%clk
0:00:29.5]} 41. b4 {[%clk 0:01:58.7]} 41... cxb4+ {[%clk 0:00:20.4]} 42. Kxb4
{[%clk 0:01:59.6]} 42... h5 {[%clk 0:00:20.8]} 43. Rd3 {[%clk 0:01:58.6]} 43...
Rf4 {[%clk 0:00:12.7]} 44. Kb5 {[%clk 0:01:58.5]} 44... Rd4 {[%clk 0:00:13.3]}
45. c5+ {[%clk 0:01:48.8]} 45... Kxd5 {[%clk 0:00:04.4]} 46. Rxd4+ {[%clk
0:01:49.1]} 46... exd4 {[%clk 0:00:04.7]} 47. c6 {[%clk 0:01:49.8]} 47... h4
{[%clk 0:00:01.6]} 48. c7 {[%clk 0:01:50.1]} 48... Ke5 {[%clk 0:00:01.8]} 49.
c8=Q {[%clk 0:01:51]} 49... Kf4 {[%clk 0:00:02.7]} 50. Qg4+ {[%clk 0:01:50.9]}
50... Ke3 {[%clk 0:00:03.4]} 51. Qe4+ {[%clk 0:01:51.4]} 51... Kf2 {[%clk
0:00:01.4]} 52. Qxd4+ {[%clk 0:01:52.3]} 52... Kg3 {[%clk 0:00:02.3]} 53. Qg4+
{[%clk 0:01:52.4]} 1-0

[Event "Late-Titled-Tuesday-Blitz-May-14-2024"]
[Site "Chess.com"]
[Date "2024.05.14"]
[Round "3"]
[White "giovannibrandao7"]
[Black "rdarruda"]
[Result "1-0"]
[WhiteElo "2326"]
[BlackElo "2510"]
[TimeControl "180+1"]
[EndTime "14:28:19 PDT"]
[Termination "giovannibrandao7 won by resignation"]

1. e4 {[%clk 0:03:00.9]} 1... c5 {[%clk 0:02:59.6]} 2. Nf3 {[%clk 0:03:01.3]}
2... Nc6 {[%clk 0:02:59.5]} 3. Bb5 {[%clk 0:03:01.8]} 3... g6 {[%clk 0:02:58.3]}
4. O-O {[%clk 0:03:01.3]} 4... Bg7 {[%clk 0:02:58]} 5. Re1 {[%clk 0:03:01.3]}
5... Nf6 {[%clk 0:02:55.9]} 6. c3 {[%clk 0:03:01.7]} 6... O-O {[%clk 0:02:55.3]}
7. d4 {[%clk 0:03:02.3]} 7... cxd4 {[%clk 0:02:55]} 8. cxd4 {[%clk 0:03:03.2]}
8... d5 {[%clk 0:02:55.2]} 9. e5 {[%clk 0:03:03.7]} 9... Ne4 {[%clk 0:02:55.4]}
10. Nbd2 {[%clk 0:03:03.4]} 10... Bf5 {[%clk 0:02:53.1]} 11. Nf1 {[%clk
0:02:41.5]} 11... Qb6 {[%clk 0:02:51.6]} 12. Bxc6 {[%clk 0:02:33.5]} 12... Qxc6
{[%clk 0:02:52.5]} 13. Ne3 {[%clk 0:02:32.2]} 13... Be6 {[%clk 0:02:46.5]} 14.
Nd2 {[%clk 0:02:14.5]} 14... Nxd2 {[%clk 0:02:45.3]} 15. Bxd2 {[%clk 0:02:15.3]}
15... f6 {[%clk 0:02:39]} 16. exf6 {[%clk 0:02:13.2]} 16... exf6 {[%clk
0:02:37.7]} 17. Rc1 {[%clk 0:02:04.9]} 17... Qb6 {[%clk 0:02:35.8]} 18. Qb3
{[%clk 0:01:45.8]} 18... Qxb3 {[%clk 0:02:34.7]} 19. axb3 {[%clk 0:01:46.7]}
19... Rac8 {[%clk 0:02:31.1]} 20. Bb4 {[%clk 0:01:43.5]} 20... Rfe8 {[%clk
0:02:28.3]} 21. Kf1 {[%clk 0:01:34.1]} 21... f5 {[%clk 0:02:26.5]} 22. Bc3
{[%clk 0:01:28.9]} 22... f4 {[%clk 0:02:25.9]} 23. Nc2 {[%clk 0:01:26.8]} 23...
Kf7 {[%clk 0:02:17.2]} 24. f3 {[%clk 0:01:21]} 24... b6 {[%clk 0:02:14.8]} 25.
Kf2 {[%clk 0:01:21.1]} 25... a5 {[%clk 0:02:12.1]} 26. b4 {[%clk 0:01:21.4]}
26... a4 {[%clk 0:02:07.6]} 27. b5 {[%clk 0:01:19.2]} 27... Bd7 {[%clk 0:02:05]}
28. Nb4 {[%clk 0:01:17.6]} 28... Be6 {[%clk 0:01:40.1]} 29. Ra1 {[%clk 0:01:15]}
29... Ra8 {[%clk 0:01:38.8]} 30. Na6 {[%clk 0:01:08.6]} 30... Bd7 {[%clk
0:01:32.2]} 31. Nc7 {[%clk 0:01:06.9]} 31... Rxe1 {[%clk 0:01:30.7]} 32. Kxe1
{[%clk 0:01:03.9]} 32... Rc8 {[%clk 0:01:25]} 33. Nxd5 {[%clk 0:01:00.4]} 33...
Bxb5 {[%clk 0:01:25]} 34. Kf2 {[%clk 0:00:35.7]} 34... g5 {[%clk 0:01:15.6]} 35.
Nxb6 {[%clk 0:00:34]} 35... Re8 {[%clk 0:01:13.5]} 36. Re1 {[%clk 0:00:31.7]}
36... Rb8 {[%clk 0:01:13.9]} 37. Nd5 {[%clk 0:00:27.4]} 37... Rd8 {[%clk
0:01:14.2]} 38. Nc7 {[%clk 0:00:23]} 38... Bc6 {[%clk 0:01:09.5]} 39. Ne6 {[%clk
0:00:22.4]} 39... Re8 {[%clk 0:01:05.3]} 40. Nxg7 {[%clk 0:00:21.3]} 40... Rxe1
{[%clk 0:01:04.8]} 41. Kxe1 {[%clk 0:00:22.2]} 41... Kxg7 {[%clk 0:01:04.7]} 42.
d5+ {[%clk 0:00:22.8]} 1-0

[Event "Late-Titled-Tuesday-Blitz-May-14-2024"]
[Site "Chess.com"]
[Date "2024.05.14"]
[Round "3"]
[White "Durarbayli"]
[Black "NikitaShnadrygin"]
[Result "1-0"]
[WhiteElo "2954"]
[BlackElo "2754"]
[TimeControl "180+1"]
[EndTime "14:28:21 PDT"]
[Termination "Durarbayli won by resignation"]

1. e4 {[%clk 0:03:00.9]} 1... c5 {[%clk 0:02:59.8]} 2. Nf3 {[%clk 0:03:00.7]}
2... e6 {[%clk 0:03:00]} 3. d4 {[%clk 0:03:00.9]} 3... cxd4 {[%clk 0:03:00.9]}
4. Nxd4 {[%clk 0:03:01.6]} 4... Nf6 {[%clk 0:03:01.4]} 5. Nc3 {[%clk 0:03:01.8]}
5... Nc6 {[%clk 0:03:02.1]} 6. Be2 {[%clk 0:02:58.7]} 6... Bb4 {[%clk
0:03:01.8]} 7. O-O {[%clk 0:02:56.3]} 7... Bxc3 {[%clk 0:02:59.5]} 8. bxc3
{[%clk 0:02:57.2]} 8... Nxe4 {[%clk 0:03:00]} 9. Nxc6 {[%clk 0:02:44.7]} 9...
dxc6 {[%clk 0:02:59.8]} 10. Bd3 {[%clk 0:02:44.1]} 10... Nf6 {[%clk 0:02:54.1]}
11. Ba3 {[%clk 0:02:37.3]} 11... b6 {[%clk 0:02:43.2]} 12. Qf3 {[%clk
0:02:34.4]} 12... Qc7 {[%clk 0:02:39.7]} 13. c4 {[%clk 0:01:28.7]} 13... Bb7
{[%clk 0:02:03.5]} 14. c5 {[%clk 0:01:28.6]} 14... Nd7 {[%clk 0:01:58.2]} 15.
Qg4 {[%clk 0:01:12.9]} 15... Nxc5 {[%clk 0:01:35.1]} 16. Bxc5 {[%clk 0:01:02.6]}
16... bxc5 {[%clk 0:01:36]} 17. Qxg7 {[%clk 0:01:02.9]} 17... O-O-O {[%clk
0:01:36.3]} 18. Rab1 {[%clk 0:01:00]} 18... c4 {[%clk 0:01:34.1]} 19. Bxc4
{[%clk 0:00:52.7]} 19... c5 {[%clk 0:01:34.6]} 20. Qc3 {[%clk 0:00:29.5]} 20...
Rhg8 {[%clk 0:01:34.6]} 21. g3 {[%clk 0:00:30.2]} 21... Rd4 {[%clk 0:01:25.1]}
22. Be2 {[%clk 0:00:22.7]} 22... Qc6 {[%clk 0:01:10.6]} 23. Rxb7 {[%clk
0:00:22.8]} 23... Kxb7 {[%clk 0:01:03]} 24. Bf3 {[%clk 0:00:23.3]} 24... Rd5
{[%clk 0:01:00.5]} 25. Qf6 {[%clk 0:00:23.9]} 25... Qd7 {[%clk 0:00:33.2]} 26.
c4 {[%clk 0:00:21.9]} 26... Rg6 {[%clk 0:00:32]} 27. Qb2+ {[%clk 0:00:21.6]} 1-0

[Event "Late-Titled-Tuesday-Blitz-May-14-2024"]
[Site "Chess.com"]
[Date "2024.05.14"]
[Round "3"]
[White "HipsterChess22"]
[Black "Rdeux42"]
[Result "0-1"]
[WhiteElo "2191"]
[BlackElo "2407"]
[TimeControl "180+1"]
[EndTime "14:28:21 PDT"]
[Termination "Rdeux42 won by resignation"]

1. d4 {[%clk 0:03:00]} 1... d5 {[%clk 0:02:59.6]} 2. Nc3 {[%clk 0:02:59.8]} 2...
Nf6 {[%clk 0:02:57.2]} 3. Bf4 {[%clk 0:02:59.6]} 3... g6 {[%clk 0:02:54]} 4. e3
{[%clk 0:02:57.8]} 4... Bg7 {[%clk 0:02:54]} 5. h4 {[%clk 0:02:57.4]} 5... Ne4
{[%clk 0:02:44]} 6. Nxe4 {[%clk 0:02:52.6]} 6... dxe4 {[%clk 0:02:43.3]} 7. h5
{[%clk 0:02:52.8]} 7... c5 {[%clk 0:02:36.1]} 8. hxg6 {[%clk 0:02:46.5]} 8...
hxg6 {[%clk 0:02:37]} 9. Rxh8+ {[%clk 0:02:45.6]} 9... Bxh8 {[%clk 0:02:37.9]}
10. c3 {[%clk 0:02:44.4]} 10... cxd4 {[%clk 0:02:32.4]} 11. exd4 {[%clk
0:02:40.7]} 11... Nc6 {[%clk 0:02:29]} 12. Bb5 {[%clk 0:02:24]} 12... Qb6 {[%clk
0:02:26]} 13. Qa4 {[%clk 0:02:09.6]} 13... Bd7 {[%clk 0:02:22.4]} 14. Be3 {[%clk
0:02:04.5]} 14... a6 {[%clk 0:02:18.4]} 15. Bxc6 {[%clk 0:02:02.2]} 15... Bxc6
{[%clk 0:02:16.7]} 16. Qb3 {[%clk 0:02:01.7]} 16... Qxb3 {[%clk 0:02:12.7]} 17.
axb3 {[%clk 0:02:02.6]} 17... O-O-O {[%clk 0:02:12.4]} 18. Nh3 {[%clk
0:01:43.3]} 18... e5 {[%clk 0:02:07.8]} 19. dxe5 {[%clk 0:01:29.4]} 19... Bxe5
{[%clk 0:02:08.7]} 20. Rd1 {[%clk 0:01:28.3]} 20... Bd5 {[%clk 0:02:01.6]} 21.
c4 {[%clk 0:01:21.7]} 21... Be6 {[%clk 0:01:58.7]} 22. Rxd8+ {[%clk 0:01:21.1]}
22... Kxd8 {[%clk 0:01:54.2]} 23. Bc1 {[%clk 0:01:22]} 23... b5 {[%clk
0:01:50.4]} 24. Nf4 {[%clk 0:01:15]} 24... Bd7 {[%clk 0:01:34]} 25. Nd5 {[%clk
0:01:05.2]} 25... Be6 {[%clk 0:01:27.8]} 26. Ke2 {[%clk 0:00:56.2]} 26... Bxd5
{[%clk 0:01:23.6]} 27. cxd5 {[%clk 0:00:57.1]} 27... Kd7 {[%clk 0:01:23.7]} 28.
b4 {[%clk 0:00:50.8]} 28... Kd6 {[%clk 0:01:18.4]} 29. Kd2 {[%clk 0:00:37.4]}
29... Bf4+ {[%clk 0:01:14.5]} 30. Kc2 {[%clk 0:00:33.1]} 30... Bxc1 {[%clk
0:01:15.4]} 31. Kxc1 {[%clk 0:00:34]} 31... Kxd5 {[%clk 0:01:15.7]} 32. b3
{[%clk 0:00:34]} 32... Kd4 {[%clk 0:01:13.7]} 33. Kd2 {[%clk 0:00:34]} 33... f5
{[%clk 0:01:14.3]} 34. g3 {[%clk 0:00:33.9]} 34... g5 {[%clk 0:01:14.5]} 35. Ke2
{[%clk 0:00:30.4]} 35... f4 {[%clk 0:01:08.7]} 36. gxf4 {[%clk 0:00:30.3]} 36...
gxf4 {[%clk 0:01:08.7]} 37. Kd2 {[%clk 0:00:29.2]} 37... f3 {[%clk 0:01:04.9]}
0-1

[Event "Late-Titled-Tuesday-Blitz-May-14-2024"]
[Site "Chess.com"]
[Date "2024.05.14"]
[Round "3"]
[White "Defend1r"]
[Black "mostafa_sakha"]
[Result "0-1"]
[WhiteElo "2564"]
[BlackElo "2365"]
[TimeControl "180+1"]
[EndTime "14:28:25 PDT"]
[Termination "mostafa_sakha won by checkmate"]

1. a4 {[%clk 0:02:59.4]} 1... e5 {[%clk 0:02:56.5]} 2. Ra3 {[%clk 0:02:59.6]}
2... Bxa3 {[%clk 0:02:55.8]} 3. Nxa3 {[%clk 0:03:00.5]} 3... Nf6 {[%clk
0:02:56.1]} 4. c3 {[%clk 0:03:00.7]} 4... O-O {[%clk 0:02:56.1]} 5. g3 {[%clk
0:03:00.7]} 5... d5 {[%clk 0:02:56]} 6. Bg2 {[%clk 0:03:01.1]} 6... Nc6 {[%clk
0:02:56]} 7. Nc2 {[%clk 0:03:00.3]} 7... e4 {[%clk 0:02:55.6]} 8. d3 {[%clk
0:02:53.5]} 8... exd3 {[%clk 0:02:55.1]} 9. Qxd3 {[%clk 0:02:51.4]} 9... Ne5
{[%clk 0:02:52.8]} 10. Qd1 {[%clk 0:02:51.1]} 10... c6 {[%clk 0:02:52.5]} 11.
Nf3 {[%clk 0:02:51]} 11... Nxf3+ {[%clk 0:02:52]} 12. Bxf3 {[%clk 0:02:51.9]}
12... Bh3 {[%clk 0:02:52.4]} 13. Qd4 {[%clk 0:02:44.9]} 13... Ne4 {[%clk
0:02:40.9]} 14. Bxe4 {[%clk 0:02:27.7]} 14... dxe4 {[%clk 0:02:41.8]} 15. Qxe4
{[%clk 0:02:28.2]} 15... Re8 {[%clk 0:02:35]} 16. Qc4 {[%clk 0:02:21.5]} 16...
Qd7 {[%clk 0:02:07.2]} 17. f3 {[%clk 0:02:11.2]} 17... Bg2 {[%clk 0:02:06.5]}
18. Rg1 {[%clk 0:02:08.9]} 18... Bxf3 {[%clk 0:02:06.1]} 19. Ne3 {[%clk
0:01:53.5]} 19... Bd5 {[%clk 0:01:57.7]} 20. Qd3 {[%clk 0:01:47]} 20... Qe6
{[%clk 0:01:41.8]} 21. Rf1 {[%clk 0:01:41.5]} 21... Rad8 {[%clk 0:01:38.6]} 22.
Qd4 {[%clk 0:01:11.9]} 22... Bg2 {[%clk 0:01:37.2]} 23. Qxa7 {[%clk 0:01:05.1]}
23... Bxf1 {[%clk 0:01:36.3]} 24. Kxf1 {[%clk 0:01:06]} 24... Rd1+ {[%clk
0:01:28.6]} 25. Nxd1 {[%clk 0:00:55.3]} 25... Qxe2+ {[%clk 0:01:29.5]} 26. Kg1
{[%clk 0:00:56]} 26... Qxd1+ {[%clk 0:01:29.2]} 27. Kg2 {[%clk 0:00:53.3]} 27...
Qxc1 {[%clk 0:01:28.6]} 28. Qxb7 {[%clk 0:00:52.3]} 28... Qd1 {[%clk 0:01:23.1]}
29. Qxc6 {[%clk 0:00:42.1]} 29... Qe2+ {[%clk 0:01:22.1]} 30. Kh3 {[%clk
0:00:41.2]} 30... Qh5+ {[%clk 0:01:21.6]} 31. Kg2 {[%clk 0:00:41.3]} 31... Qe2+
{[%clk 0:01:06]} 32. Kh3 {[%clk 0:00:40.9]} 32... h5 {[%clk 0:01:03.7]} 33. Qd7
{[%clk 0:00:30.9]} 33... g5 {[%clk 0:01:01.7]} 34. a5 {[%clk 0:00:13.2]} 34...
Qf1# {[%clk 0:01:00.8]} 0-1